[Event "*** SCC Grand Prix: Titled Tuesday Blitz"]
[Site "Chess.com"]
[Date "2020.06.02"]
[Round "7"]
[White "quesfr"]
[Black "Gandrade2"]
[Result "1-0"]
[WhiteElo "2245"]
[BlackElo "2015"]
[TimeControl "180+1"]
[EndTime "11:20:57 PDT"]
[Termination "quesfr won by resignation"]

1. e4 {[%clk 0:03:00.9]} 1... c5 {[%clk 0:03:00]} 2. Nf3 {[%clk 0:03:00.3]} 2...
g6 {[%clk 0:03:00.4]} 3. d4 {[%clk 0:02:58.5]} 3... cxd4 {[%clk 0:03:01.3]} 4.
Qxd4 {[%clk 0:02:58.4]} 4... Nf6 {[%clk 0:03:01.2]} 5. Nc3 {[%clk 0:02:57.9]}
5... Nc6 {[%clk 0:03:01.1]} 6. Qa4 {[%clk 0:02:57.5]} 6... d6 {[%clk 0:03:01.1]}
7. e5 {[%clk 0:02:54.8]} 7... dxe5 {[%clk 0:03:01.4]} 8. Nxe5 {[%clk 0:02:53.7]}
8... Bd7 {[%clk 0:03:02.1]} 9. Nxd7 {[%clk 0:02:45.5]} 9... Nxd7 {[%clk
0:03:03]} 10. Be2 {[%clk 0:02:35]} 10... Bg7 {[%clk 0:03:01.9]} 11. O-O {[%clk
0:02:28.8]} 11... O-O {[%clk 0:02:44.6]} 12. Rd1 {[%clk 0:02:20.9]} 12... Qc8
{[%clk 0:02:43.6]} 13. Nd5 {[%clk 0:02:11.4]} 13... Re8 {[%clk 0:02:32]} 14. c3
{[%clk 0:02:01.3]} 14... Nf6 {[%clk 0:02:17.8]} 15. Be3 {[%clk 0:01:41.6]} 15...
Nxd5 {[%clk 0:02:02.8]} 16. Rxd5 {[%clk 0:01:42.5]} 16... Rd8 {[%clk 0:01:35.7]}
17. Rad1 {[%clk 0:01:41.7]} 17... Rxd5 {[%clk 0:01:33.7]} 18. Rxd5 {[%clk
0:01:42.6]} 18... Qe6 {[%clk 0:01:34.3]} 19. Bc4 {[%clk 0:01:30.9]} 19... Qg4
{[%clk 0:01:23.7]} 20. Rd8+ {[%clk 0:01:18]} 20... Nxd8 {[%clk 0:01:15.8]} 21.
Bxf7+ {[%clk 0:01:17.2]} 21... Nxf7 {[%clk 0:01:16.7]} 22. Qxg4 {[%clk 0:01:17]}
22... Rd8 {[%clk 0:01:16.5]} 23. g3 {[%clk 0:01:10.5]} 23... Ne5 {[%clk
0:01:15.5]} 24. Qe4 {[%clk 0:01:03.4]} 24... Rd1+ {[%clk 0:01:08.3]} 25. Kg2
{[%clk 0:01:03]} 25... Nc6 {[%clk 0:01:07.3]} 26. Qg4 {[%clk 0:00:55.9]} 26...
Rd8 {[%clk 0:01:03.7]} 27. Qe6+ {[%clk 0:00:54.7]} 27... Kh8 {[%clk 0:01:03.5]}
28. a4 {[%clk 0:00:53.1]} 28... a6 {[%clk 0:01:02.5]} 29. h4 {[%clk 0:00:51.4]}
29... Rf8 {[%clk 0:01:02.2]} 30. Bc5 {[%clk 0:00:47.6]} 30... Bf6 {[%clk
0:00:59.1]} 31. Qd7 {[%clk 0:00:44]} 31... Rb8 {[%clk 0:00:57.6]} 32. Qc7 {[%clk
0:00:34.5]} 32... Kg7 {[%clk 0:00:54.9]} 33. Be3 {[%clk 0:00:24.3]} 33... h6
{[%clk 0:00:49.4]} 34. Qd7 {[%clk 0:00:23]} 34... h5 {[%clk 0:00:43.9]} 35. Bf4
{[%clk 0:00:21.2]} 35... Be5 {[%clk 0:00:25]} 36. Bxe5+ {[%clk 0:00:18.3]} 36...
Nxe5 {[%clk 0:00:25.9]} 37. Qxe7+ {[%clk 0:00:17.8]} 37... Nf7 {[%clk
0:00:26.5]} 38. Qc7 {[%clk 0:00:17.1]} 38... Re8 {[%clk 0:00:23.1]} 39. Qxb7
{[%clk 0:00:16.3]} 39... Kf8 {[%clk 0:00:24]} 40. Qxa6 {[%clk 0:00:16]} 40...
Ne5 {[%clk 0:00:24.1]} 41. Qe2 {[%clk 0:00:13.9]} 41... Kf7 {[%clk 0:00:23]} 42.
Qe4 {[%clk 0:00:13]} 42... Ng4 {[%clk 0:00:21.7]} 43. Qd5+ {[%clk 0:00:12.2]}
43... Kg7 {[%clk 0:00:21.2]} 44. Qd7+ {[%clk 0:00:11.4]} 44... Kf8 {[%clk
0:00:21.7]} 45. a5 {[%clk 0:00:10.7]} 45... Re2 {[%clk 0:00:19.4]} 46. Qd6+
{[%clk 0:00:09.7]} 46... Kg7 {[%clk 0:00:18]} 47. Qd4+ {[%clk 0:00:08]} 47...
Kf8 {[%clk 0:00:17.3]} 48. a6 {[%clk 0:00:07.7]} 48... Rxb2 {[%clk 0:00:09.6]}
49. a7 {[%clk 0:00:06.8]} 49... Nxf2 {[%clk 0:00:07.9]} 50. Qxf2+ {[%clk
0:00:05.8]} 1-0

[Event "*** SCC Grand Prix: Titled Tuesday Blitz"]
[Site "Chess.com"]
[Date "2020.06.02"]
[Round "7"]
[White "chessbia"]
[Black "mjray79"]
[Result "0-1"]
[WhiteElo "2116"]
[BlackElo "2310"]
[TimeControl "180+1"]
[EndTime "11:21:00 PDT"]
[Termination "mjray79 won by checkmate"]

1. d4 {[%clk 0:03:00.9]} 1... Nf6 {[%clk 0:02:59.3]} 2. c4 {[%clk 0:03:01.5]}
2... g6 {[%clk 0:02:58.9]} 3. Nc3 {[%clk 0:03:01.5]} 3... Bg7 {[%clk 0:02:59.3]}
4. e4 {[%clk 0:03:01.5]} 4... d6 {[%clk 0:02:59.6]} 5. h3 {[%clk 0:03:00.3]}
5... O-O {[%clk 0:02:59.5]} 6. Be3 {[%clk 0:03:00.2]} 6... e5 {[%clk 0:02:59.6]}
7. d5 {[%clk 0:03:00.2]} 7... a5 {[%clk 0:02:58.6]} 8. g4 {[%clk 0:03:00.2]}
8... Na6 {[%clk 0:02:57.6]} 9. Nge2 {[%clk 0:03:00.4]} 9... Nd7 {[%clk
0:02:53.4]} 10. Ng3 {[%clk 0:02:59.8]} 10... Ndc5 {[%clk 0:02:50.5]} 11. h4
{[%clk 0:02:45.7]} 11... f5 {[%clk 0:02:42.8]} 12. gxf5 {[%clk 0:02:44.2]} 12...
gxf5 {[%clk 0:02:43.7]} 13. exf5 {[%clk 0:02:44.1]} 13... Bxf5 {[%clk
0:02:44.6]} 14. Nh5 {[%clk 0:02:18.5]} 14... Nb4 {[%clk 0:02:35.7]} 15. Bxc5
{[%clk 0:01:56.9]} 15... Nc2+ {[%clk 0:02:23.6]} 16. Kd2 {[%clk 0:01:53.9]}
16... Nxa1 {[%clk 0:02:20.3]} 17. Nxg7 {[%clk 0:01:47.6]} 17... Kxg7 {[%clk
0:02:15.2]} 18. Be3 {[%clk 0:01:36.6]} 18... Nc2 {[%clk 0:02:10.6]} 19. Bg5
{[%clk 0:01:34.3]} 19... Qd7 {[%clk 0:01:59]} 20. Qh5 {[%clk 0:01:27.6]} 20...
Qf7 {[%clk 0:01:37.2]} 21. Qh6+ {[%clk 0:01:05.9]} 21... Kh8 {[%clk 0:01:34.8]}
22. Rg1 {[%clk 0:00:48.2]} 22... Nd4 {[%clk 0:01:23.9]} 23. Be2 {[%clk
0:00:45.5]} 23... Nxe2 {[%clk 0:01:14.6]} 24. Nxe2 {[%clk 0:00:35.7]} 24... Qg6
{[%clk 0:01:13.3]} 25. Ng3 {[%clk 0:00:23.9]} 25... Qxh6 {[%clk 0:00:59.8]} 26.
Bxh6 {[%clk 0:00:24.8]} 26... Rg8 {[%clk 0:00:40.2]} 27. Bg5 {[%clk 0:00:20]}
27... Raf8 {[%clk 0:00:39.5]} 28. Be3 {[%clk 0:00:20]} 28... Bg4 {[%clk
0:00:34.2]} 29. b3 {[%clk 0:00:19.8]} 29... h5 {[%clk 0:00:33.9]} 30. Ne4 {[%clk
0:00:19]} 30... Bf3 {[%clk 0:00:26.3]} 31. Ng5 {[%clk 0:00:19.6]} 31... Bg4
{[%clk 0:00:24.2]} 32. Ra1 {[%clk 0:00:19.4]} 32... Kg7 {[%clk 0:00:22.9]} 33.
a3 {[%clk 0:00:19.6]} 33... Kf6 {[%clk 0:00:22.7]} 34. Kc3 {[%clk 0:00:20]}
34... Kf5 {[%clk 0:00:21.1]} 35. Ne6 {[%clk 0:00:19.6]} 35... Rc8 {[%clk
0:00:20]} 36. b4 {[%clk 0:00:19.2]} 36... Ke4 {[%clk 0:00:18.2]} 37. Ng5+ {[%clk
0:00:17.5]} 37... Kf5 {[%clk 0:00:18.2]} 38. c5 {[%clk 0:00:15.7]} 38... axb4+
{[%clk 0:00:15.5]} 39. axb4 {[%clk 0:00:16.6]} 39... Ra8 {[%clk 0:00:15.7]} 40.
Rb1 {[%clk 0:00:10.7]} 40... Kf6 {[%clk 0:00:13.5]} 41. Ne4+ {[%clk 0:00:05]}
41... Ke7 {[%clk 0:00:13.3]} 42. Ng3 {[%clk 0:00:04.2]} 42... Ra3+ {[%clk
0:00:11.9]} 43. Kc4 {[%clk 0:00:04.1]} 43... Rga8 {[%clk 0:00:10.4]} 44. Rb2
{[%clk 0:00:04.4]} 44... Bf3 {[%clk 0:00:09.3]} 45. Nf5+ {[%clk 0:00:03]} 45...
Kd7 {[%clk 0:00:08.6]} 46. cxd6 {[%clk 0:00:03]} 46... cxd6 {[%clk 0:00:09.5]}
47. Kb5 {[%clk 0:00:03.6]} 47... Ra2 {[%clk 0:00:08.7]} 48. Rb3 {[%clk
0:00:03.6]} 48... Be2+ {[%clk 0:00:07.7]} 49. Kb6 {[%clk 0:00:04.1]} 49... R8a7
{[%clk 0:00:06.1]} 50. Rc3 {[%clk 0:00:03.4]} 50... R2a6# {[%clk 0:00:05.8]} 0-1

[Event "*** SCC Grand Prix: Titled Tuesday Blitz"]
[Site "Chess.com"]
[Date "2020.06.02"]
[Round "7"]
[White "mortngabriel"]
[Black "Abund"]
[Result "1-0"]
[WhiteElo "2468"]
[BlackElo "2592"]
[TimeControl "180+1"]
[EndTime "11:21:01 PDT"]
[Termination "mortngabriel won on time"]

1. e4 {[%clk 0:03:00.9]} 1... c5 {[%clk 0:02:59.9]} 2. Nf3 {[%clk 0:03:00.5]}
2... Nc6 {[%clk 0:03:00.4]} 3. Bb5 {[%clk 0:03:00.1]} 3... g6 {[%clk 0:03:00.4]}
4. O-O {[%clk 0:03:00.2]} 4... Bg7 {[%clk 0:03:00.7]} 5. Re1 {[%clk 0:02:59.3]}
5... Nf6 {[%clk 0:03:01]} 6. c3 {[%clk 0:02:58.6]} 6... O-O {[%clk 0:02:55.9]}
7. h3 {[%clk 0:02:57.1]} 7... e5 {[%clk 0:02:54.4]} 8. Bxc6 {[%clk 0:02:36.3]}
8... dxc6 {[%clk 0:02:54.5]} 9. Nxe5 {[%clk 0:02:36]} 9... Re8 {[%clk
0:02:38.7]} 10. f4 {[%clk 0:02:35.6]} 10... Nh5 {[%clk 0:02:25]} 11. d4 {[%clk
0:02:34.9]} 11... cxd4 {[%clk 0:02:12]} 12. cxd4 {[%clk 0:02:35.8]} 12... Qh4
{[%clk 0:02:07.5]} 13. Nc3 {[%clk 0:01:54.5]} 13... Nxf4 {[%clk 0:01:31.3]} 14.
Nf3 {[%clk 0:01:10.1]} 14... Qg3 {[%clk 0:01:12]} 15. Bxf4 {[%clk 0:00:50.6]}
15... Qxf4 {[%clk 0:01:12.3]} 16. Qe2 {[%clk 0:00:40.8]} 16... Bf5 {[%clk
0:00:52.5]} 17. Rad1 {[%clk 0:00:35.1]} 17... Rad8 {[%clk 0:00:45.3]} 18. Qd2
{[%clk 0:00:23.3]} 18... Qxd2 {[%clk 0:00:43.5]} 19. Rxd2 {[%clk 0:00:24.2]}
19... Bc8 {[%clk 0:00:39.1]} 20. Red1 {[%clk 0:00:19.7]} 20... b6 {[%clk
0:00:26.2]} 21. Kf2 {[%clk 0:00:18.6]} 21... Bh6 {[%clk 0:00:24.2]} 22. Rc2
{[%clk 0:00:18.6]} 22... Bb7 {[%clk 0:00:23.1]} 23. e5 {[%clk 0:00:16.4]} 23...
c5 {[%clk 0:00:19.7]} 24. dxc5 {[%clk 0:00:14.9]} 24... bxc5 {[%clk 0:00:19.9]}
25. Rxd8 {[%clk 0:00:11.6]} 25... Rxd8 {[%clk 0:00:20.8]} 26. Na4 {[%clk
0:00:10.6]} 26... Bd5 {[%clk 0:00:18.4]} 27. b3 {[%clk 0:00:08.7]} 27... c4
{[%clk 0:00:16.7]} 28. bxc4 {[%clk 0:00:08.5]} 28... Rc8 {[%clk 0:00:16.7]} 29.
c5 {[%clk 0:00:07.3]} 29... Bf8 {[%clk 0:00:16.4]} 30. Nd4 {[%clk 0:00:05.6]}
30... Bc6 {[%clk 0:00:07.2]} 31. Nxc6 {[%clk 0:00:05.4]} 31... Rxc6 {[%clk
0:00:08.1]} 32. Ke3 {[%clk 0:00:05.7]} 32... Ra6 {[%clk 0:00:08]} 33. Rc4 {[%clk
0:00:05.9]} 33... Rc6 {[%clk 0:00:08.3]} 34. Kd4 {[%clk 0:00:06.1]} 34... Be7
{[%clk 0:00:05.6]} 35. Kd5 {[%clk 0:00:06.2]} 35... Rc7 {[%clk 0:00:06]} 36. c6
{[%clk 0:00:07.1]} 36... Kf8 {[%clk 0:00:06.4]} 37. Nc5 {[%clk 0:00:06.2]} 37...
Bxc5 {[%clk 0:00:05.9]} 38. Kxc5 {[%clk 0:00:05.4]} 38... Ke7 {[%clk 0:00:06.5]}
39. Rb4 {[%clk 0:00:05.8]} 39... Kd8 {[%clk 0:00:05.3]} 40. Rb7 {[%clk
0:00:05.4]} 40... Rxb7 {[%clk 0:00:05.2]} 41. cxb7 {[%clk 0:00:05.9]} 41... Kc7
{[%clk 0:00:05.9]} 42. g4 {[%clk 0:00:04.4]} 42... h6 {[%clk 0:00:04.5]} 43.
b8=Q+ {[%clk 0:00:03.6]} 43... Kxb8 {[%clk 0:00:04.8]} 44. Kd6 {[%clk
0:00:04.5]} 44... f5 {[%clk 0:00:04.3]} 45. exf6 {[%clk 0:00:04.1]} 1-0

[Event "*** SCC Grand Prix: Titled Tuesday Blitz"]
[Site "Chess.com"]
[Date "2020.06.02"]
[Round "7"]
[White "GoltsevDmitry2000"]
[Black "Irishchessman16"]
[Result "0-1"]
[WhiteElo "2620"]
[BlackElo "2433"]
[TimeControl "180+1"]
[EndTime "11:21:01 PDT"]
[Termination "Irishchessman16 won by checkmate"]

1. e4 {[%clk 0:02:57.6]} 1... c5 {[%clk 0:02:59.7]} 2. Nf3 {[%clk 0:02:57.3]}
2... Nc6 {[%clk 0:02:59]} 3. d4 {[%clk 0:02:57.7]} 3... cxd4 {[%clk 0:02:58.9]}
4. Nxd4 {[%clk 0:02:58.6]} 4... Nf6 {[%clk 0:02:58.6]} 5. Nc3 {[%clk 0:02:58.8]}
5... e5 {[%clk 0:02:56.6]} 6. Ndb5 {[%clk 0:02:58.7]} 6... d6 {[%clk 0:02:56.8]}
7. Nd5 {[%clk 0:02:58.3]} 7... Nxd5 {[%clk 0:02:54.5]} 8. exd5 {[%clk
0:02:59.2]} 8... Nb8 {[%clk 0:02:55.1]} 9. c3 {[%clk 0:02:51.9]} 9... Be7 {[%clk
0:02:53.6]} 10. Be3 {[%clk 0:02:49.6]} 10... a6 {[%clk 0:02:50.5]} 11. Na3
{[%clk 0:02:49.3]} 11... O-O {[%clk 0:02:49.1]} 12. Bd3 {[%clk 0:02:49.1]} 12...
f5 {[%clk 0:02:48.4]} 13. f3 {[%clk 0:02:45.8]} 13... e4 {[%clk 0:02:19.6]} 14.
fxe4 {[%clk 0:02:38.7]} 14... f4 {[%clk 0:02:19.8]} 15. Bf2 {[%clk 0:02:36]}
15... f3 {[%clk 0:02:19.3]} 16. gxf3 {[%clk 0:02:32.4]} 16... Bh4 {[%clk
0:02:18.5]} 17. Qd2 {[%clk 0:02:21.1]} 17... Rxf3 {[%clk 0:02:13.5]} 18. O-O
{[%clk 0:02:20.5]} 18... Bg5 {[%clk 0:01:19.2]} 19. Qd1 {[%clk 0:01:52.1]} 19...
Bg4 {[%clk 0:01:17.8]} 20. Be2 {[%clk 0:01:50.1]} 20... Qf6 {[%clk 0:00:49.8]}
21. Bxf3 {[%clk 0:01:36]} 21... Bxf3 {[%clk 0:00:49.7]} 22. Bd4 {[%clk
0:01:35.7]} 22... Be3+ {[%clk 0:00:49.1]} 23. Bxe3 {[%clk 0:01:21.5]} 23... Qg6+
{[%clk 0:00:46.3]} 24. Kf2 {[%clk 0:01:21.9]} 24... Qg2+ {[%clk 0:00:44.9]} 25.
Ke1 {[%clk 0:01:22.1]} 25... Bxd1 {[%clk 0:00:44.3]} 26. Rxd1 {[%clk 0:01:20.9]}
26... Qxe4 {[%clk 0:00:43.8]} 27. Kd2 {[%clk 0:01:17.3]} 27... Nd7 {[%clk
0:00:42.1]} 28. Nc2 {[%clk 0:01:14.6]} 28... Qxd5+ {[%clk 0:00:19.3]} 29. Bd4
{[%clk 0:01:11.5]} 29... Qxa2 {[%clk 0:00:16.3]} 30. Kc1 {[%clk 0:01:06.4]}
30... Rf8 {[%clk 0:00:12.8]} 31. Rg1 {[%clk 0:01:05]} 31... g6 {[%clk
0:00:12.4]} 32. Rg2 {[%clk 0:01:03.1]} 32... Ne5 {[%clk 0:00:11.8]} 33. Nb4
{[%clk 0:01:01.3]} 33... Qe6 {[%clk 0:00:10.7]} 34. Re1 {[%clk 0:00:57.4]} 34...
a5 {[%clk 0:00:08.8]} 35. Bxe5 {[%clk 0:00:53.4]} 35... axb4 {[%clk 0:00:08.9]}
36. Bg3 {[%clk 0:00:52.8]} 36... Qa2 {[%clk 0:00:08]} 37. Bxd6 {[%clk
0:00:43.6]} 37... Rd8 {[%clk 0:00:04.7]} 38. Rd1 {[%clk 0:00:29.6]} 38... Qa1+
{[%clk 0:00:03.1]} 39. Kc2 {[%clk 0:00:29.1]} 39... b3+ {[%clk 0:00:03.4]} 40.
Kxb3 {[%clk 0:00:24.5]} 40... Qxd1+ {[%clk 0:00:03.4]} 41. Kc4 {[%clk
0:00:23.2]} 41... Rxd6 {[%clk 0:00:03.9]} 42. Rg3 {[%clk 0:00:21.6]} 42... Qd5+
{[%clk 0:00:03.6]} 43. Kb4 {[%clk 0:00:20.3]} 43... Rb6+ {[%clk 0:00:04.2]} 44.
Ka4 {[%clk 0:00:20.8]} 44... Qb3+ {[%clk 0:00:04.4]} 45. Ka5 {[%clk 0:00:21.1]}
45... Qb5# {[%clk 0:00:04.9]} 0-1

[Event "*** SCC Grand Prix: Titled Tuesday Blitz"]
[Site "Chess.com"]
[Date "2020.06.02"]
[Round "7"]
[White "DonPreuss"]
[Black "pooh2012"]
[Result "1/2-1/2"]
[WhiteElo "2232"]
[BlackElo "2397"]
[TimeControl "180+1"]
[EndTime "11:21:01 PDT"]
[Termination "Game drawn by repetition"]

1. d4 {[%clk 0:03:00.9]} 1... d5 {[%clk 0:02:58.9]} 2. e4 {[%clk 0:03:00.5]}
2... dxe4 {[%clk 0:02:57.8]} 3. Nc3 {[%clk 0:03:01.1]} 3... Nf6 {[%clk
0:02:54.1]} 4. f3 {[%clk 0:03:01.4]} 4... c6 {[%clk 0:02:50.1]} 5. Bc4 {[%clk
0:02:41.3]} 5... Bf5 {[%clk 0:02:27.3]} 6. Be3 {[%clk 0:02:36.1]} 6... e6 {[%clk
0:02:23.3]} 7. fxe4 {[%clk 0:02:32.1]} 7... Nxe4 {[%clk 0:02:21.6]} 8. Nf3
{[%clk 0:02:32.3]} 8... Bb4 {[%clk 0:02:12.4]} 9. O-O {[%clk 0:02:30.2]} 9...
Nxc3 {[%clk 0:02:11.4]} 10. bxc3 {[%clk 0:02:30.6]} 10... Bxc3 {[%clk
0:02:12.3]} 11. Rb1 {[%clk 0:02:24.4]} 11... b5 {[%clk 0:02:11.6]} 12. Bd3
{[%clk 0:02:17.6]} 12... Bg6 {[%clk 0:02:09.9]} 13. Ne5 {[%clk 0:02:11.8]} 13...
Bxd4 {[%clk 0:01:36.6]} 14. Bxg6 {[%clk 0:01:44.6]} 14... Bxe3+ {[%clk 0:01:35]}
15. Kh1 {[%clk 0:01:44.8]} 15... fxg6 {[%clk 0:00:30.7]} 16. Qxd8+ {[%clk
0:01:39]} 16... Kxd8 {[%clk 0:00:31.6]} 17. Nf7+ {[%clk 0:01:39.1]} 17... Kc7
{[%clk 0:00:22.7]} 18. Nxh8 {[%clk 0:01:40]} 18... Nd7 {[%clk 0:00:22.7]} 19.
Nf7 {[%clk 0:01:39.2]} 19... Rf8 {[%clk 0:00:18.4]} 20. Rb3 {[%clk 0:01:04.6]}
20... Bd4 {[%clk 0:00:16.7]} 21. Rbf3 {[%clk 0:01:01.1]} 21... Bf6 {[%clk
0:00:15.9]} 22. Ng5 {[%clk 0:00:58.7]} 22... Re8 {[%clk 0:00:12.4]} 23. Ne4
{[%clk 0:00:56.2]} 23... e5 {[%clk 0:00:10.6]} 24. Rd3 {[%clk 0:00:50.1]} 24...
Re7 {[%clk 0:00:08.8]} 25. Rfd1 {[%clk 0:00:48.6]} 25... Nb6 {[%clk 0:00:08.6]}
26. Ra3 {[%clk 0:00:41.8]} 26... Na4 {[%clk 0:00:03.1]} 27. c4 {[%clk
0:00:37.1]} 27... Rd7 {[%clk 0:00:02.8]} 28. Rc1 {[%clk 0:00:30.9]} 28... Kb6
{[%clk 0:00:01.7]} 29. cxb5 {[%clk 0:00:23.8]} 29... cxb5 {[%clk 0:00:02.6]} 30.
Rb1 {[%clk 0:00:20.4]} 30... Rd4 {[%clk 0:00:02.3]} 31. Nc3 {[%clk 0:00:18.9]}
31... Nxc3 {[%clk 0:00:02.4]} 32. Rxc3 {[%clk 0:00:18.8]} 32... a6 {[%clk
0:00:02.9]} 33. Rbc1 {[%clk 0:00:16.7]} 33... e4 {[%clk 0:00:03.1]} 34. Kg1
{[%clk 0:00:15.9]} 34... Rd6 {[%clk 0:00:02.5]} 35. R3c2 {[%clk 0:00:15.7]}
35... Bd4+ {[%clk 0:00:02.7]} 36. Kf1 {[%clk 0:00:15.8]} 36... e3 {[%clk
0:00:03.2]} 37. Ke2 {[%clk 0:00:15.5]} 37... h6 {[%clk 0:00:02.2]} 38. Rf1
{[%clk 0:00:15.4]} 38... g5 {[%clk 0:00:02.1]} 39. h3 {[%clk 0:00:15.6]} 39...
Be5 {[%clk 0:00:02.6]} 40. Rf5 {[%clk 0:00:15]} 40... Bf4 {[%clk 0:00:03.1]} 41.
Rf7 {[%clk 0:00:15.1]} 41... Rd2+ {[%clk 0:00:03.2]} 42. Rxd2 {[%clk 0:00:14.9]}
42... exd2 {[%clk 0:00:04.1]} 43. Rxg7 {[%clk 0:00:15.1]} 43... h5 {[%clk
0:00:04.4]} 44. g3 {[%clk 0:00:12.7]} 44... Bxg3 {[%clk 0:00:04.5]} 45. Rxg5
{[%clk 0:00:12]} 45... h4 {[%clk 0:00:05]} 46. Rg6+ {[%clk 0:00:11.3]} 46... Ka5
{[%clk 0:00:04.2]} 47. Kxd2 {[%clk 0:00:12]} 47... Ka4 {[%clk 0:00:04.2]} 48.
Kc2 {[%clk 0:00:12.3]} 48... a5 {[%clk 0:00:04.5]} 49. Kb2 {[%clk 0:00:12.1]}
49... b4 {[%clk 0:00:04.9]} 50. Kc2 {[%clk 0:00:11.1]} 50... Be5 {[%clk
0:00:05.1]} 51. Rg5 {[%clk 0:00:09.5]} 51... Bg3 {[%clk 0:00:04.8]} 52. Rh5
{[%clk 0:00:09.4]} 52... Bf2 {[%clk 0:00:04.9]} 53. Kb2 {[%clk 0:00:09.2]} 53...
Bg3 {[%clk 0:00:05]} 54. Kc2 {[%clk 0:00:09.5]} 54... Be1 {[%clk 0:00:05.3]} 55.
Re5 {[%clk 0:00:08.7]} 55... Bg3 {[%clk 0:00:05.1]} 56. Rh5 {[%clk 0:00:08.7]}
1/2-1/2

[Event "*** SCC Grand Prix: Titled Tuesday Blitz"]
[Site "Chess.com"]
[Date "2020.06.02"]
[Round "7"]
[White "GOGIEFF"]
[Black "Gloomy_Wanderer"]
[Result "1/2-1/2"]
[WhiteElo "2953"]
[BlackElo "2784"]
[TimeControl "180+1"]
[EndTime "11:21:02 PDT"]
[Termination "Game drawn by agreement"]

1. d4 {[%clk 0:03:00.9]} 1... Nf6 {[%clk 0:02:58.8]} 2. c4 {[%clk 0:03:00.8]}
2... e6 {[%clk 0:02:59.1]} 3. Nc3 {[%clk 0:03:00.8]} 3... Bb4 {[%clk 0:02:58.8]}
4. e3 {[%clk 0:03:00.7]} 4... b6 {[%clk 0:02:58.8]} 5. Ne2 {[%clk 0:02:57.8]}
5... Ba6 {[%clk 0:02:58.8]} 6. a3 {[%clk 0:02:56.9]} 6... Bxc3+ {[%clk
0:02:59.1]} 7. Nxc3 {[%clk 0:02:56.8]} 7... d5 {[%clk 0:02:58.9]} 8. b3 {[%clk
0:02:57]} 8... O-O {[%clk 0:02:58.2]} 9. a4 {[%clk 0:02:56.6]} 9... dxc4 {[%clk
0:02:55.5]} 10. Ba3 {[%clk 0:02:50.8]} 10... Re8 {[%clk 0:02:51]} 11. bxc4
{[%clk 0:02:33.8]} 11... Nc6 {[%clk 0:02:46.8]} 12. Bd3 {[%clk 0:02:13.7]} 12...
e5 {[%clk 0:02:04.1]} 13. d5 {[%clk 0:02:12.4]} 13... Na5 {[%clk 0:02:04.2]} 14.
Nb5 {[%clk 0:02:11.2]} 14... c6 {[%clk 0:01:43.2]} 15. dxc6 {[%clk 0:02:04.8]}
15... Nxc6 {[%clk 0:01:39.2]} 16. O-O {[%clk 0:02:04.5]} 16... Qd7 {[%clk
0:01:29.7]} 17. Be2 {[%clk 0:01:51.1]} 17... Red8 {[%clk 0:01:11]} 18. Qb1
{[%clk 0:01:45.2]} 18... Rac8 {[%clk 0:01:05.7]} 19. Rd1 {[%clk 0:01:37.5]}
19... Qe6 {[%clk 0:01:05.5]} 20. Qb2 {[%clk 0:01:25.8]} 20... Ne8 {[%clk
0:00:51.8]} 21. c5 {[%clk 0:01:06.7]} 21... Na5 {[%clk 0:00:44.7]} 22. Nxa7
{[%clk 0:00:59]} 22... Bxe2 {[%clk 0:00:33.3]} 23. Qxe2 {[%clk 0:00:59.9]} 23...
Rxd1+ {[%clk 0:00:31.5]} 24. Rxd1 {[%clk 0:00:58.8]} 24... Ra8 {[%clk
0:00:31.6]} 25. cxb6 {[%clk 0:00:54.5]} 25... Qxb6 {[%clk 0:00:31.4]} 26. Nb5
{[%clk 0:00:54.5]} 26... Nc6 {[%clk 0:00:30.1]} 27. Qc4 {[%clk 0:00:51.5]} 27...
Qa6 {[%clk 0:00:27.8]} 28. Rd7 {[%clk 0:00:45.3]} 28... Nd8 {[%clk 0:00:27.1]}
29. h4 {[%clk 0:00:42.1]} 29... Nf6 {[%clk 0:00:25.2]} 30. Rc7 {[%clk
0:00:33.8]} 30... h6 {[%clk 0:00:20.6]} 31. Be7 {[%clk 0:00:19.5]} 31... Ne6
{[%clk 0:00:20.6]} 32. Rc6 {[%clk 0:00:16.4]} 32... Qxa4 {[%clk 0:00:20.9]} 33.
Rc8+ {[%clk 0:00:16.4]} 33... Kh7 {[%clk 0:00:19.7]} 34. Qxa4 {[%clk 0:00:16.3]}
34... Rxa4 {[%clk 0:00:19.8]} 35. Bxf6 {[%clk 0:00:17]} 35... gxf6 {[%clk
0:00:20.3]} 36. Nd6 {[%clk 0:00:17.6]} 36... Rxh4 {[%clk 0:00:19]} 37. Nxf7
{[%clk 0:00:16.4]} 37... Rg4 {[%clk 0:00:14.5]} 38. Rc6 {[%clk 0:00:15.3]} 38...
Ng5 {[%clk 0:00:06.8]} 39. Rxf6 {[%clk 0:00:12.7]} 39... Kg7 {[%clk 0:00:07.2]}
40. Nxe5 {[%clk 0:00:10.9]} 40... Rxg2+ {[%clk 0:00:04]} 41. Kxg2 {[%clk
0:00:11.8]} 41... Kxf6 {[%clk 0:00:04.6]} 42. Ng4+ {[%clk 0:00:12.2]} 42... Kg6
{[%clk 0:00:05.1]} 43. f3 {[%clk 0:00:12.4]} 43... h5 {[%clk 0:00:04.8]} 44. Nf2
{[%clk 0:00:12.6]} 44... Kf5 {[%clk 0:00:04.8]} 45. Nh3 {[%clk 0:00:13.2]} 45...
Ne6 {[%clk 0:00:04.5]} 46. Kg3 {[%clk 0:00:13.4]} 46... Nc7 {[%clk 0:00:05.4]}
47. e4+ {[%clk 0:00:13]} 47... Ke5 {[%clk 0:00:06.1]} 48. Ng5 {[%clk 0:00:13.3]}
48... Ne6 {[%clk 0:00:06.5]} 49. f4+ {[%clk 0:00:13.2]} 49... Nxf4 {[%clk
0:00:05.9]} 50. Kh4 {[%clk 0:00:07]} 50... Nd3 {[%clk 0:00:04.7]} 51. Kxh5
{[%clk 0:00:05.2]} 1/2-1/2